Cogmind - Beta 10.2 @@@ ROGUE MODE // 2022.02.28 @ 00:23:04 Player: woegarden Result: Self-destructed Performance ------------- Evolutions (1) 500 Regions Visited (3) 600 Robots Destroyed (13) 65 Value Destroyed (254) 254 Prototype IDs (0) 0 Alien Tech Used (0) 0 Bonus (0) 0 TOTAL SCORE: 1419 Bonus ------- None Cogmind --------- Core Integrity 175/400 Matter 202/300 Energy 100/100 System Corruption 0% Temperature Cool (0) Movement Core (300) Ox5 Location -9/Materials Parts ------- > --- POWER (1) -------- (None) > --- PROPULSION (3) --- (None) > --- UTILITY (3) ------ Large Storage Unit > --- WEAPON (2) ------- (None) > --- INVENTORY (10) --- Ion Engine VTOL Module VTOL Module VTOL Module Light Armor Plating Peak State ------------ > --- POWER ------------ Improved Ion Engine > --- PROPULSION ------- VTOL Module VTOL Module VTOL Module > --- UTILITY ---------- Large Storage Unit > --- WEAPON ----------- Assault Rifle > --- INVENTORY -------- Ion Engine Aluminum Leg VTOL Module Light Armor Plating [Rating: 10] Favorites ----------- Power Light Ion Engine Engine Light Ion Engine Propulsion Aluminum Leg Leg Aluminum Leg Flight Unit VTOL Module Utility Large Storage Unit Storage Large Storage Unit Protection Light Armor Plating Weapon Assault Rifle Energy Gun Particle Gun Ballistic Gun Assault Rifle Build | -11 -10 -10 -9 ------- Run | Scr Mat Min Mat Slots Evolved 2 | . . . 2 Power . | . . . . Propulsion 1 | . . . 1 Utility 1 | . . . 1 Weapon . | . . . . Parts Attached 23 | 6 2 2 13 Power 5 | 1 . . 4 Engine 5 | 1 . . 4 Core . | . . . . Reactor . | . . . . Propulsion 8 | 2 . . 6 Treads . | . . . . Leg 5 | 2 . . 3 Wheel . | . . . . Hover . | . . . . Flight 3 | . . . 3 Utility 3 | 1 2 . . Device . | . . . . Storage 2 | 1 1 . . Processor . | . . . . Hackware . | . . . . Protection 1 | . 1 . . Artifact . | . . . . Weapon 7 | 2 . 2 3 Energy Gun 2 | . . 1 1 Energy Cannon . | . . . . Ballistic Gun 5 | 2 . 1 2 Ballistic Cannon . | . . . . Launcher . | . . . . Special Weapon . | . . . . Impact Weapon . | . . . . Slashing Weapon . | . . . . Piercing Weapon . | . . . . Special Melee Weapon . | . . . . Unidentified Prototypes . | . . . . Parts Lost 8 | . . . 8 Power 2 | . . . 2 Propulsion 4 | . . . 4 Utility . | . . . . Weapon 2 | . . . 2 Highest Loss Streak 5 | . . . 5 Average Slot Usage (%) 87 | . 99 96 53 Engine 12 | . 14 14 8 Leg 23 | . 28 28 8 Flight 2 | . . . 13 Storage 13 | . 14 14 11 Protection 11 | . 13 14 1 Energy Gun 8 | . . 12 2 Ballistic Gun 14 | . 28 12 7 Naked Turns . | . . . . Heaviest Build 27 | 11 26 27 27 Greatest Support 20 | 20 20 20 20 Greatest Overweight (x) 7 | 1 1 1 7 Average Overweight (x) . | . . 1 2 Largest Inventory Capacity 10 | 6 10 10 10 Average Capacity 9 | 5 7 10 10 Most Carried 7 | 5 3 3 7 Average Carried 2 | 2 2 1 3 Final Capacity 10 | 6 10 10 10 Final Carried 5 | 2 2 1 5 Class Distribution -------------------- 100% | Mutant Dominant Class ---------------- Mutant | -10/Materials Mutant | -10/Mines Mutant | -9/Materials Resources | -11 -10 -10 -9 ----------- Run | Scr Mat Min Mat Matter Collected 444 | 237 46 143 18 Remotely . | . . . . Salvage Created 341 | . 99 160 82 Parts 24 | . 2 17 5 Haulers Intercepted . | . . . . Recyclers Shooed . | . . . . Parts Field Recycled . | . . . . Retrieved Matter . | . . . . Parts Self-Destructed . | . . . . Prevented . | . . . . Kills | -11 -10 -10 -9 ------- Run | Scr Mat Min Mat Combat Hostiles Destroyed 12 | . 2 7 3 Guns 12 | . 2 7 3 Classes Destroyed 4 | . 1 2 1 Worker 1 | . . 1 . Swarmer 8 | . . 6 2 Grunt 3 | . 2 1 . Sentry 1 | . . . 1 Best Kill Streak 3 | . 2 3 2 Combat Bots Only 3 | . 2 3 2 Max Kills in Single Turn 2 | . 1 2 1 Gunslinging 1 | . . 1 . Exploded . | . . . . Melee . | . . . . Uniques/NPCs Destroyed . | . . . . Combat | -11 -10 -10 -9 -------- Run | Scr Mat Min Mat Damage Taken 1062 | . 207 297 558 Core 348 | . 37 86 225 Absorbed by Shields . | . . . . Core Remaining (%) 75 | 100 . 50 . Volleys Fired 47 | . 11 18 18 Largest 2 | . 2 2 1 Hottest 85 | . 40 85 65 Shots Fired 65 | . 22 25 18 Gun 65 | . 22 25 18 Cannon . | . . . . Launcher . | . . . . Special . | . . . . Kinetic 59 | . 22 23 14 Thermal 6 | . . 2 4 Explosive . | . . . . Electromagnetic . | . . . . Robot Hit Streak 12 | . 6 12 6 Robot Miss Streak 3 | . 2 3 2 Penetration Max . | . . . . Secondary Targets 2 | . . 2 . Max Gunslinging Chain 1 | . . 1 . Shots Hit Robots 42 | . 15 16 11 Core Hits 20 | . 5 10 5 Critical Hits . | . . . . Critical Kills . | . . . . Critical Parts Destroyed . | . . . . Melee Attacks . | . . . . Impact . | . . . . Slashing . | . . . . Piercing . | . . . . Sneak Attacks . | . . . . Combat Hostiles . | . . . . Follow-up Attacks . | . . . . Damage Inflicted 586 | . 205 241 140 Guns 551 | . 205 208 138 Cannons . | . . . . Explosions . | . . . . Melee . | . . . . Ramming 35 | . . 33 2 Kinetic 488 | . 205 177 106 Thermal 63 | . . 31 32 Explosive . | . . . . Electromagnetic . | . . . . Impact . | . . . . Slashing . | . . . . Piercing . | . . . . Highest Corruption . | . . . . Average Corruption . | . . . . Corruption Purged . | . . . . Overload Shots . | . . . . Overflow Damage . | . . . . Projectiles . | . . . . Explosions . | . . . . Melee . | . . . . Knockbacks . | . . . . Impact . | . . . . Kinetic . | . . . . Secondary . | . . . . Self-Inflicted Damage 6 | . . 6 . Shots . | . . . . Rammed 8 | . . 4 4 Targets Rammed 11 | . . 7 4 Kicked 3 | . . 3 . Crushed . | . . . . Highest Temperature 66 | . 25 66 34 Average Temperature 17 | . 12 22 18 Received Heat Transfer 249 | . 114 69 66 Siege Activations . | . . . . Robots Corrupted . | . . . . Combat Hostiles . | . . . . Parts Fried . | . . . . Impact Corruptions . | . . . . Robots Melted . | . . . . Combat Hostiles . | . . . . Parts Melted 1 | . . . 1 Heat Transferred 148 | . . 74 74 Parts Sabotaged . | . . . . Parts Stolen . | . . . . Parts Stripped . | . . . . Power Chain Reactions . | . . . . Missiles Intercepted . | . . . . Alert | -11 -10 -10 -9 ------- Run | Scr Mat Min Mat Peak Influence 140 | . 50 140 95 Initial 19 | . . 19 . Average 46 | . 37 58 27 Maximum Alert Level . | . . . . Low Security (%) 100 | 100 100 100 100 Level 1 . | . . . . Level 2 . | . . . . Level 3 . | . . . . Level 4 . | . . . . Level 5 . | . . . . High Security . | . . . . Max Security . | . . . . Squads Dispatched 1 | . . . 1 Investigation . | . . . . Extermination . | . . . . Reinforcement 1 | . . . 1 Assault . | . . . . Garrison . | . . . . Intercept . | . . . . Construction Impeded . | . . . . Haulers Reinforced . | . . . . Stealth | -11 -10 -10 -9 --------- Run | Scr Mat Min Mat Distress Signals 2 | . . . 2 Communications Jammed . | . . . . Distress Signals . | . . . . Times Spotted 23 | . 3 9 11 Peak Tracking Total 8 | . 2 3 8 Tactical Retreats 1 | . . 1 . Traps | -11 -10 -10 -9 ------- Run | Scr Mat Min Mat Traps Triggered 4 | . . . 4 Indirectly . | . . . . Trap Hack Attempts . | . . . . Triggered . | . . . . Disarmed . | . . . . Reprogrammed . | . . . . Reused . | . . . . Traps Extracted . | . . . . Installed . | . . . . Triggered . | . . . . Machines | -11 -10 -10 -9 ---------- Run | Scr Mat Min Mat Machines Disabled . | . . . . Max in Single Turn . | . . . . Machines Sabotaged . | . . . . Garrisons Compromised . | . . . . Overloaded Fab Kills . | . . . . Fab Network Shutdowns . | . . . . Hacking | -11 -10 -10 -9 --------- Run | Scr Mat Min Mat Machines Accessed . | . . . . Terminals . | . . . . Fabricators . | . . . . Repair Stations . | . . . . Recycling Units . | . . . . Scanalyzers . | . . . . Garrison Access . | . . . . Total Hacks . | . . . . Successful . | . . . . Failed . | . . . . Catastrophic . | . . . . Database Lockouts . | . . . . Manual . | . . . . Terminals . | . . . . Fabricators . | . . . . Repair Stations . | . . . . Recycling Units . | . . . . Scanalyzers . | . . . . Garrison Access . | . . . . Terminal Hacks . | . . . . Fabricator Hacks . | . . . . Repair Station Hacks . | . . . . Recycling Unit Hacks . | . . . . Scanalyzer . | . . . . Garrison Access Hacks . | . . . . Unauthorized Hacks . | . . . . Terminals . | . . . . Fabricators . | . . . . Repair Stations . | . . . . Recycling Units . | . . . . Scanalyzers . | . . . . Garrison Access . | . . . . Data Cores Recovered . | . . . . Used . | . . . . Hacking Detections . | . . . . Full Trace Events . | . . . . Feedback Events . | . . . . Feedback Blocked . | . . . . Robot Schematics Acquired . | . . . . Robots Built . | . . . . Matter . | . . . . Time . | . . . . Total Robot Build Rating . | . . . . Part Schematics Acquired . | . . . . Parts Built . | . . . . Matter . | . . . . Time . | . . . . Total Part Build Rating . | . . . . Parts Repaired . | . . . . Time . | . . . . Parts Recycled . | . . . . Recycled Matter . | . . . . Retrieved Matter . | . . . . Retrieved Components . | . . . . Parts Scanalyzed . | . . . . Part Schematics Acquired . | . . . . Parts Damaged . | . . . . Bothacking | -11 -10 -10 -9 ------------ Run | Scr Mat Min Mat Used RIF Installer . | . . . . Robots Hacked . | . . . . Non-combat . | . . . . Combat . | . . . . Robot Hacks Applied . | . . . . Relay Couplers Released . | . . . . Robots Rewired . | . . . . Allies Hacked . | . . . . Hacks Repelled . | . . . . Allies | -11 -10 -10 -9 -------- Run | Scr Mat Min Mat Total Allies . | . . . . Largest Group . | . . . . Highest-Rated Group . | . . . . Highest-Rated Ally . | . . . . Total Orders . | . . . . Ally Attacks . | . . . . Total Damage . | . . . . Kills . | . . . . Allies Corrupted . | . . . . Allies Melted . | . . . . Intel | -11 -10 -10 -9 ------- Run | Scr Mat Min Mat Robot Analysis Total . | . . . . Derelict Logs Recovered 3 | . . 3 . Drone Launches . | . . . . Drone Recoveries . | . . . . Exploration | -11 -10 -10 -9 ------------- Run | Scr Mat Min Mat Turns Passed 1444 | 52 236 864 292 Spaces Moved 848 | 43 152 534 119 Core 33 | 18 . . 15 Treads . | . . . . Legs 800 | 25 152 534 89 Wheels . | . . . . Hover . | . . . . Flight 15 | . . . 15 Fastest Speed 50 | 50 120 150 114 Average Speed 148 | 94 130 150 180 Slowest Speed 400 | 120 150 150 400 Overloaded Moves . | . . . . Propulsion Burnouts . | . . . . Robots Hopped . | . . . . Cave-ins Triggered . | . . . . Exploration Rate (%) 36 | 3 31 95 18 Regions Visited 3 Branch Regions 1 Pre-discovered Areas 1 | . . 1 . Known Exits Taken . | . . . . Unknown Exits Taken 3 | 1 1 1 . Scrap Searched 3 | . . 3 . Spaces Dug . | . . . . Terrain Destroyed . | . . . . Melee . | . . . . Projectile . | . . . . AOE . | . . . . Terrain Rammed . | . . . . Walls Destroyed . | . . . . Machines Disabled . | . . . . Actions | -11 -10 -10 -9 --------- Run | Scr Mat Min Mat Total 960 | 53 167 570 170 Wait 11 | . . 6 5 Move 845 | 42 151 533 119 Hop . | . . . . Pick Up 19 | 5 2 1 11 Fast Attach 6 | 3 . . 3 Attach 12 | 3 1 1 7 Detach 1 | . . 1 . Swap 5 | . 1 1 3 Drop 3 | . 1 2 . Fire 47 | . 11 18 18 Melee . | . . . . Ram 1 | . . . 1 Kick 10 | . . 7 3 Crush . | . . . . Escape Stasis . | . . . . Rewire . | . . . . Trap . | . . . . Miscellaneous . | . . . . Route ------- -11/Scrapyard -10/Materials (discovered 2 exits: [*Mat] / [*Min]) -10/Mines -9/Materials (discovered 1 exit: Mat) History --------- Turn | Location | Event 3 | -11/Scrapyard | Discovered new exit (range 15) 53 | -11/Scrapyard | Entered Materials 175 | -10/Materials | Discovered new exit (range 13) 224 | -10/Materials | Discovered new exit (range 6) 289 | -10/Materials | Entered Mines 306 | -10/Mines | Build established: Mutant 472 | -10/Mines | Learned location of 1 exit from Materials 679 | -10/Mines | Learned location of Mines (-8) 831 | -10/Mines | Discovered new exit (range 9) 987 | -10/Mines | Learned Materials garrison access intel 1153 | -10/Mines | Entered Materials 1153 | -9/Materials | Evolved 2 slots: Propulsion x1, Utility x1 1154 | -9/Materials | Identified exit to Materials 1275 | -9/Materials | Lost 3 parts (1p1n1w) 1443 | -9/Materials | Core integrity fell below 50% 1445 | -9/Materials | Self-destructed Last Messages --------------- 01275_ Acquired Imp. Ion Engine. 01373_ Acquired VTOL Module. 01376_ O-16 Technician: "IFF HANDSHAKE FAILED. SECURING TERMINAL." 01378_ ALERT: Hostiles spotted, dispatching reinforcements to Terminal M011. 01393_ S-10 Pest destroyed. 01394_ R-06 Scavenger collects Flight Unit. 01395_ S-10 Pest destroyed. 01401_ Assault Rifle destroyed. 01403_ Acquired 18 matter. 01405_ K-01 Serf collects debris. 01405_ Slammed into S-10 Pest. 01407_ R-06 Scavenger collects Flight Unit. 01408_ Slammed into S-10 Pest. 01408_ Aluminum Leg destroyed. 01424_ VTOL Module destroyed. 01428_ Imp. Ion Engine destroyed. 01430_ Slammed into S-10 Pest. 01434_ W-16 Scout sends out distress signal. 01442_ K-01 Serf cleans the Terminal. Map ----- +----------------------------------------------------+ | ?????????????????????????????????????????????????? | | ?????????????????????????????????????????????????? | | ?????????????????????????????????????????????????? | | ?????????????????????????????????????????????????? | | ?????????????????????????????????????????????????? | | ?????????????????????????????????????????????????? | | ?????????????????????????????????????????????????? | | ?????????????????????????????????????????????????? | | ##???????????????????????????????????????????????? | | #???????????????????????????????????????????????? | | #???????????????????????????????????????????????? | | #???????????????????????????????????????????????? | | #???????????????????????????????????????????????? | | #???????????????????????????????????????????????? | | !#???????????????????????????????????????????????? | | #???????????????????????????????????????????????? | | #???????????????????????????????????????????????? | | #???????????????????????????????????????????????? | | ###############??????????????????????????????????? | | + ! #??????????????????? ????????????? | | ######### # ????????????????? ????????????? | | ????????# # ????###??????? "k ???????????? | | ????????# /###+####T####### T ""?????????? | | ??#####?# %# u g " ????????? | | ?? ??# + s r k u o ????????? | | ? """"??# # w s @ g ????????? | | ? """"" # ###+####+#########+#???????????????? | | """"" # #?# #??????????????????????? | | # #?# """ """ #??????????????????????? | | """""?#/ #?# """ """ #??????????????????????? | | """""?# #?# """ """ #??????????????????????? | | """""?#######?# #??????????????????????? | | ? ?????????# #??????????????????????? | | ?######?????????# #??????????????????????? | | T ! #?????????# #??????????????????????? | | #?????????###########??????????????????????? | | """ #??????????????????????????????????????????? | | """ #??????????????????????????????????????????? | | """ ]#??????????????????????????????????????????? | | ? #??????????????????????????????????????????? | | ?######??????????????????????????????????????????? | | ?????????????????????????????????????????????????? | | ?????????????????????????????????????????????????? | | ?????????????????????????????????????????????????? | | ?????????????????????????????????????????????????? | | ?????????????????????????????????????????????????? | | ?????????????????????????????????????????????????? | | ?????????????????????????????????????????????????? | | ?????????????????????????????????????????????????? | | ?????????????????????????????????????????????????? | +----------------------------------------------------+ Best States ------------- Heat Dissipation 28 Energy Generation 10 Energy Capacity 265 Matter Stores 300 Matter Capacity 300 Sight Range 16 Terrain Scan Density 10 Armor Coverage 150 Evasion (%) 50 Item Schematics ----------------- None Robot Schematics ------------------ None Fabricated ------------ Nothing Alien Tech Used ----------------- None Achievements -------------- None Challenges ------------ None Game ------ Seed CooledAntigravThrower Manual? 0 Play Time 00:10:41 Cumulative 62.6 hours Start 2022.02.28 @ 00:11:51 End 2022.02.28 @ 00:23:04 Sessions 1 Manual Loads 0 Difficulty Rogue Special Mode None Game No. 76 Rogue 30 Adventurer 45 Explorer 1 Win Type - Total 0 Types 0/0/0/0/0/0/0/0/0 Lore% 23 Gallery% 44 Achievement% 28 Wizard Run 0 Options --------- ASCII 0 Keyboard 0 Movement Mouse Keybinds 0 Fullscreen 2 Font 16/Proggy Map View 76x50 Tactical HUD 1 Map Filters NONE Filters NONE Steam 1 RUN: c0ffeec4-e121-4401-be08-f112cdb594e8